[Event "44th Chess Olympiad Open 2022"]
[Site "Chennai"]
[Date "2022.08.06"]
[Round "8.1"]
[White "Ter-Sahakyan, Samvel"]
[Black "Erigaisi Arjun"]
[Result "1/2-1/2"]
[WhiteElo "2625"]
[BlackElo "2689"]
[Annotator "TA"]
[PlyCount "167"]
[EventDate "2022.??.??"]
[TimeControl "60"]

{[%evp 9,167,25,6,9,10,9,16,15,16,15,19,15,18,21,17,19,18,29,20,0,0,0,0,0,0,0,
0,0,0,0,0,0,0,0,33,0,0,0,0,0,0,0,0,-16,-8,-21,-21,-25,-22,-22,-18,-18,-18,-23,
-20,-29,-24,-25,-28,-26,-26,-27,-14,-15,-15,-14,-6,-7,0,0,0,-16,-10,-41,-10,
-15,-8,-10,-6,-14,0,0,0,0,0,0,0,0,0,0,0,0,0,0,0,0,0,0,0,0,0,0,0,0,0,0,0,0,0,0,
0,0,0,0,0,0,0,0,0,0,0,0,0,0,0,0,0,0,0,0,0,0,0,0,0,0,0,0,0,0,0,0,0,0,0,0,0,0,0,
0,0,0,0,0,0,0,0,0,0,0]} 1. e4 {[%emt 0:00:04]} c5 {[%emt 0:00:06]} 2. Nf3 {
[%emt 0:00:06]} e6 {[%emt 0:00:06]} 3. d4 {[%emt 0:00:41]} cxd4 {[%emt 0:00:06]
} 4. Nxd4 {[%emt 0:00:03]} Nf6 {[%emt 0:00:06]} 5. Nc3 {[%emt 0:00:03]} Nc6 {
[%emt 0:00:05]} 6. Qd3 {[%emt 0:08:24] B45: Sicilian Four Knights.} d5 {
[%emt 0:01:29]} 7. exd5 {[%emt 0:00:05]} Nb4 {[%emt 0:00:06]} 8. Qg3 {[%emt 0:
00:00]} Bc5 {[%emt 0:00:07]} 9. a3 {[%emt 0:00:33]} (9. Qxg7 Rg8 10. Bb5+ Ke7
11. d6+ Bxd6 $17) 9... Nbxd5 {[%emt 0:00:08] [#]} 10. Nxd5 $146 {[%emt 0:00:05]
} ({Not} 10. Qxg7 $2 Rg8 11. Qh6 (11. Bb5+ $2 Ke7 $19) 11... Bxd4 $19) ({
Predecessor:} 10. Bb5+ Kf8 11. Nde2 Bd7 12. Bxd7 Qxd7 13. Nxd5 Ne4 14. Qb3
Bxf2+ 15. Kf1 exd5 16. Be3 {0-1 (24) Harikrishna,P (2719)-Vitiugov,N (2726)
Belgrade 2022}) 10... Qxd5 {[%emt 0:01:42]} 11. Nb5 {[%emt 0:00:29]} ({Wrong is
} 11. Qxg7 $2 Qe5+ 12. Be2 (12. Be3 $2 Rg8 $19) 12... Rg8 $19) 11... O-O {
[%emt 0:02:18]} 12. Nc3 {[%emt 0:00:51]} Qf5 {[%emt 0:24:56]} 13. Bd3 {[%emt 0:
00:00]} Qh5 {[%emt 0:00:09]} 14. h3 {[%emt 0:17:02]} Bd7 {[%emt 0:11:15]} 15.
Bg5 {[%emt 0:21:23] [#] And now Bxf6 would win.} Be7 {[%emt 0:09:59]} 16. Be2 {
[%emt 0:04:43]} Qg6 {[%emt 0:00:21]} 17. Bd3 {[%emt 0:00:04]} Qh5 {[%emt 0:00:
00]} 18. O-O {[%emt 0:03:08]} Bc6 {[%emt 0:04:21]} 19. Be2 {[%emt 0:01:26]} Qg6
{[%emt 0:00:06]} 20. Bd3 {[%emt 0:00:05]} Qh5 {[%emt 0:00:06]} 21. Rae1 {
[%emt 0:04:19]} Nd5 {[%emt 0:09:04]} 22. Nxd5 {[%emt 0:14:22]} Qxg5 {[%emt 0:
00:00]} 23. Re5 {[%emt 0:03:03]} Qh4 {[%emt 0:00:07]} 24. Nxe7+ {[%emt 0:03:40]
} Qxe7 {[%emt 0:00:06]} 25. Rfe1 {[%emt 0:00:22]} Rad8 {[%emt 0:01:34]} 26. Qf4
{[%emt 0:04:10]} Rd6 {[%emt 0:07:07]} 27. R1e3 {[%emt 0:02:46]} Rfd8 {[%emt 0:
00:00]} 28. Rh5 {[%emt 0:04:57]} g6 $1 {[%emt 0:00:06]} 29. Qh4 {[%emt 0:01:17]
} Qxh4 {[%emt 0:00:34]} 30. Rxh4 {[%emt 0:00:01]} Kg7 {[%emt 0:01:09]} 31. Rc4
{[%emt 0:01:31]} h6 {[%emt 0:04:01]} 32. f3 {[%emt 0:00:23]} f5 {[%emt 0:00:32]
} 33. Kf2 {[%emt 0:00:20]} Kf6 {[%emt 0:00:08]} 34. Rc3 {[%emt 0:00:28]} e5 {
[%emt 0:00:27]} 35. Rc5 {[%emt 0:00:30]} Re6 {[%emt 0:01:07]} 36. Bb5 {[%emt 0:
00:00]} Bxb5 {[%emt 0:01:05]} 37. Rxb5 $11 {[%emt 0:00:03] Endgame KRR-KRR} b6
{[%emt 0:00:06]} 38. a4 {[%emt 0:00:49]} a6 {[%emt 0:00:29]} 39. Rb4 {[%emt 0:
00:09]} Rc8 {[%emt 0:03:06]} 40. Re2 {[%emt 0:01:15]} Rd6 {[%emt 0:00:05]} 41.
Ke3 {[%emt 0:04:28]} Rc5 {[%emt 0:04:08]} 42. Rd2 {[%emt 0:00:00] The position
is equal.} Rdc6 {[%emt 0:00:08]} 43. c3 {[%emt 0:01:29]} Ke7 {[%emt 0:01:17]}
44. Rd1 {[%emt 0:04:35]} Re6 {[%emt 0:06:49]} 45. g4 {[%emt 0:11:25]} a5 {
[%emt 0:01:40]} 46. gxf5 {[%emt 0:02:39][%cal Yd1d7]} gxf5 {[%emt 0:00:05]} 47.
Rh4 {[%emt 0:01:15]} Rg6 {[%emt 0:01:49]} 48. Kf2 {[%emt 0:02:06]} Ke6 {
[%emt 0:04:33]} 49. Rd8 {[%emt 0:03:12]} Rd5 {[%emt 0:00:00]} 50. Rh8 {[%emt 0:
00:55]} Rd2+ {[%emt 0:02:26]} 51. Ke3 {[%emt 0:00:00]} Rxb2 {[%emt 0:01:12]}
52. R4xh6 {[%emt 0:00:15]} f4+ {[%emt 0:02:52]} 53. Kd3 {[%emt 0:00:01]} Rxh6 {
[%emt 0:00:45]} 54. Rxh6+ {[%emt 0:00:00] KR-KR} Kf5 {[%emt 0:04:48]} 55. Rh5+
{[%emt 0:00:07]} Kf6 {[%emt 0:00:20]} 56. Rh6+ {[%emt 0:00:19]} Kf5 {[%emt 0:
03:03]} 57. Rh5+ {[%emt 0:01:33]} Ke6 {[%emt 0:00:00]} 58. Rh6+ {[%emt 0:01:11]
} Kd5 {[%emt 0:00:05]} 59. c4+ {[%emt 0:01:39]} Kc5 {[%emt 0:00:05] [#] Hoping
for ...Rb3+.} 60. Re6 {[%emt 0:00:07]} Rb3+ {[%emt 0:00:12]} 61. Ke4 {[%emt 0:
00:35]} Re3+ {[%emt 0:00:47]} 62. Kf5 {[%emt 0:00:03]} Kxc4 {[%emt 0:04:56]}
63. Rxb6 {[%emt 0:00:22]} Rxf3 {[%emt 0:00:00]} 64. Kxe5 {[%emt 0:00:30]} Rxh3
{[%emt 0:00:04]} 65. Kxf4 {[%emt 0:00:00]} Ra3 {[%emt 0:00:12]} 66. Rb8 {
[%emt 0:00:53]} Kc3 {[%emt 0:04:05]} 67. Ke3 {[%emt 0:00:16]} Rxa4 {[%emt 0:00:
05] aiming for ...Rc4.} 68. Rc8+ {[%emt 0:00:00]} Kb2 {[%emt 0:00:09]} 69. Ra8
{[%emt 0:00:44]} Ra3+ {[%emt 0:00:53]} 70. Kd2 {[%emt 0:00:04]} a4 {[%emt 0:00:
05]} 71. Ra7 {[%emt 0:00:29]} Kb1 {[%emt 0:00:00]} 72. Ra8 {[%emt 0:00:26]}
Ra2+ {[%emt 0:00:05]} 73. Kd1 {[%emt 0:00:35]} a3 {[%emt 0:00:05]} 74. Ra7 {
[%emt 0:00:26]} Ra1 {[%emt 0:00:41] ...Kb2+ is the strong threat.} 75. Rb7+ {
[%emt 0:00:13]} Ka2+ {[%emt 0:00:05]} 76. Kc2 {[%emt 0:00:01]} Rh1 {[%emt 0:00:
07]} 77. Rc7 {[%emt 0:00:51]} Rh2+ {[%emt 0:00:00]} 78. Kc1 {[%emt 0:00:04]}
Ka1 {[%emt 0:00:05]} 79. Rc3 {[%emt 0:00:43]} a2 {[%emt 0:00:05]} 80. Rc8 {
[%emt 0:00:08]} Rh1+ {[%emt 0:00:05]} 81. Kc2 {[%emt 0:00:03]} Rh2+ {[%emt 0:
00:05]} 82. Kc1 {[%emt 0:00:03]} Rg2 {[%emt 0:00:00]} 83. Rc7 {[%emt 0:00:03]}
Rb2 {[%emt 0:00:05]} 84. Rc8 {[%emt 0:00:04] An interesting draw. Weighted
Error Value: White=0.03 (flawless) /Black=0.02 (flawless)} 1/2-1/2

[Event "44th Chess Olympiad Open 2022"]
[Site "Chennai"]
[Date "2022.08.06"]
[Round "8.2"]
[White "Caruana, Fabiano"]
[Black "Gukesh D"]
[Result "0-1"]
[WhiteElo "2783"]
[BlackElo "2684"]
[Annotator "TA"]
[PlyCount "90"]
[EventDate "2022.??.??"]
[TimeControl "60"]

{[%evp 10,90,20,18,37,23,11,27,22,26,20,19,20,18,35,44,38,22,51,47,54,50,44,43,
93,45,66,45,38,35,47,27,38,35,47,53,64,21,22,-37,-7,-5,0,0,0,0,0,-74,-74,-83,
-80,-67,-77,-168,-163,-195,-192,-212,-229,-595,-558,-514,-270,-519,-509,-565,
-553,-502,-489,-1312,-1456,-1944,-1691,-29986,-29987,-29988,-29988,-29988,
-29989,-29989,-29990,-29994,-29995]} 1. e4 {[%emt 0:00:03]} c5 {[%emt 0:01:02]}
2. Nf3 {[%emt 0:00:07]} Nc6 {[%emt 0:00:29]} 3. Bb5 {[%emt 0:00:12]} g6 {
[%emt 0:01:15]} 4. O-O {[%emt 0:00:27]} Bg7 {[%emt 0:00:09]} 5. Bxc6 {[%emt 0:
00:00]} bxc6 {[%emt 0:00:48]} 6. Re1 {[%emt 0:00:32]} Qc7 {[%emt 0:00:54] B31:
Sicilian: 2...Nc6 3 Bb5 g6.} 7. h3 {[%emt 0:06:12]} d6 {[%emt 0:01:05]} 8. e5 {
[%emt 0:00:30]} dxe5 {[%emt 0:05:26] White has an edge.} 9. d3 {[%emt 0:00:11]}
c4 {[%emt 0:08:06]} 10. Nc3 {[%emt 0:00:14] [#]} (10. dxc4 f5 $15) 10... cxd3
$146 {[%emt 0:07:31]} ({Predecessor:} 10... Be6 11. Qe2 cxd3 12. cxd3 Nf6 13.
Nxe5 O-O 14. b3 Rac8 15. Bb2 c5 16. Rac1 Rfd8 {½-½ (32) Dmitriev,V (2463)
-Borstnik,A (2612) ICCF email 2020}) 11. cxd3 {[%emt 0:02:26]} Nh6 {[%emt 0:00:
00] [#]} 12. Nxe5 $1 {[%emt 0:03:28]} Nf5 {[%emt 0:01:52]} 13. Bf4 {[%emt 0:00:
00][%cal Ye5g6]} Qb7 $1 {[%emt 0:00:44]} (13... g5 14. Bh2 Qb7 15. Rc1 $16) 14.
Na4 {[%emt 0:07:47]} (14. d4 $5 {[%cal Rg2g4]}) 14... f6 {[%emt 0:07:23]} 15.
Nf3 {[%emt 0:05:09] Pair of Knights!} O-O {[%emt 0:02:54]} 16. d4 {[%emt 0:00:
00] Prevents e5.} g5 {[%emt 0:26:27]} (16... Qd7 $14) 17. Bh2 {[%emt 0:07:09]}
(17. Nc5 $16 Qb4 18. a3) 17... h5 $14 {[%emt 0:01:56]} 18. Re4 {[%emt 0:01:44]
Inhibits g4.} (18. Nc5 $5 {[%cal Rc5b7]} Qb4 19. a3 $14) 18... Qd7 {[%emt 0:00:
00]} 19. Qc2 {[%emt 0:07:40]} Rf7 {[%emt 0:03:50]} 20. Rae1 {[%emt 0:01:24]}
Bf8 {[%emt 0:01:46]} 21. Qe2 {[%emt 0:11:24]} Qd5 {[%emt 0:04:51]} 22. Nc3 {
[%emt 0:00:29]} Qd7 {[%emt 0:00:00]} 23. Qc4 {[%emt 0:08:29]} Qb7 {[%emt 0:00:
00]} 24. b4 {[%emt 0:02:21]} (24. Nd2 $11) 24... e6 {[%emt 0:00:33]} 25. Rb1 {
[%emt 0:02:29]} Qd7 {[%emt 0:03:13]} 26. Rbe1 {[%emt 0:04:25][%cal Re4e6]} Qb7
{[%emt 0:00:25]} 27. Rb1 {[%emt 0:04:03]} Qd7 {[%emt 0:01:01]} 28. a3 {[%emt 0:
00:00]} (28. Rbe1 $11 {remains equal.}) 28... a5 $17 {[%emt 0:01:55] Black
keeps a firm grip on the game.} 29. Na4 {[%emt 0:04:00] Nb6 is the strong
threat.} Qd8 {[%emt 0:00:12] Inhibits Nb6. Threatens to win with ...axb4.} 30.
bxa5 {[%emt 0:05:23]} Rxa5 {[%emt 0:00:53] And now ...Qd5 would win.} 31. Nc5 {
[%emt 0:02:30] [#]} (31. Qc2 $17 {might work better.}) 31... Qd5 $1 $19 {
[%emt 0:00:01]} (31... Rxa3 32. Nxe6 Qd5 33. Qxd5 cxd5 34. Ree1 $17) 32. Qe2 {
[%emt 0:04:24]} Rxa3 {[%emt 0:00:15]} ({Not} 32... Bxc5 33. dxc5 Ra8 34. Rd1
Qxc5 35. a4 $15) 33. Rd1 {[%emt 0:00:07]} ({Avoid the trap} 33. Nxe6 $2 Bxe6
34. Rxe6 {[#]} Rxf3 $1 $19) 33... Rfa7 {[%emt 0:04:22] aiming for ...Ra1.} 34.
g4 $2 {[%emt 0:01:54]} (34. Qe1) 34... hxg4 {[%emt 0:00:45]} 35. hxg4 {[%emt 0:
00:04]} Nh6 {[%emt 0:00:34]} 36. Bg3 $2 {[%emt 0:00:47]} (36. Nd2) 36... e5 {
[%emt 0:01:56]} 37. Nxe5 {[%emt 0:00:35]} fxe5 {[%emt 0:00:05]} 38. Rxe5 {
[%emt 0:00:22]} Bxg4 {[%emt 0:00:45]} 39. Qd2 {[%emt 0:00:45]} (39. Rxd5 $142
Bxe2 40. Rxg5+ Kf7 41. Re1) 39... Qf3 {[%emt 0:00:32]} 40. Rxg5+ {[%emt 0:00:
00]} Rg7 {[%emt 0:00:36] ( -> ...Bh3)} 41. Re1 {[%emt 0:07:00]} Bh3 {[%emt 0:
02:18][%csl Gh3][%cal Rf3g2] Black mates.} 42. Bd6 {[%emt 0:00:37]} Bxd6 {
[%emt 0:02:13]} 43. Rxg7+ {[%emt 0:00:18]} Kxg7 {[%emt 0:00:02][%csl Gh3][%cal
Rf3g2]} 44. Qg5+ {[%emt 0:00:06]} Kh7 {[%emt 0:00:17]} 45. Ne4 {[%emt 0:00:00]
[#]} Qxe4 $3 {[%emt 0:00:10] Weighted Error Value: White=0.62/ Black=0.09 
(flawless)} 0-1

[Event "44th Chess Olympiad Open 2022"]
[Site "Chennai"]
[Date "2022.08.06"]
[Round "8.2"]
[White "So, Wesley"]
[Black "Praggnanandhaa R"]
[Result "1/2-1/2"]
[WhiteElo "2773"]
[BlackElo "2648"]
[Annotator "TA"]
[PlyCount "65"]
[EventDate "2022.??.??"]
[TimeControl "60"]

{[%evp 21,65,22,18,4,9,13,15,9,10,0,0,0,0,-3,0,0,0,-72,-64,-96,-99,-94,-50,-39,
-64,-72,-71,-78,-78,-78,-77,-76,-77,-69,-76,-77,-77,-77,-45,-61,-19,-16,-14,
-15,-12,-14]} 1. e4 {[%emt 0:00:04]} c5 {[%emt 0:00:55]} 2. Nf3 {[%emt 0:00:10]
} Nc6 {[%emt 0:00:12]} 3. Nc3 {[%emt 0:03:01]} g6 {[%emt 0:00:50]} 4. d4 {
[%emt 0:01:41]} cxd4 {[%emt 0:00:06]} 5. Nxd4 {[%emt 0:00:03]} Bg7 {[%emt 0:00:
00]} 6. Be3 {[%emt 0:00:05]} Nf6 {[%emt 0:00:17]} 7. Bc4 {[%emt 0:00:04]} O-O {
[%emt 0:01:43]} 8. Bb3 {[%emt 0:00:05]} d6 {[%emt 0:00:57]} 9. f3 {[%emt 0:00:
00]} Qa5 {[%emt 0:00:36]} 10. Qd2 {[%emt 0:00:55]} Nxd4 $1 {[%emt 0:01:07] is
currently scoring better than 10...Bd7.} 11. Bxd4 {[%emt 0:00:09]} Be6 {
[%emt 0:00:27]} 12. h4 {[%emt 0:14:57][%cal Yh2h4,Yh4h5] [#] B77: Sicilian
Dragon: Yugoslav Attack, 9 Bc4 sidelines.} b5 $146 {[%emt 0:14:56]} ({
Predecessor:} 12... Bxb3 13. cxb3 Rac8 14. a3 Rfd8 15. h5 e5 16. Be3 d5 17. b4
Qa6 18. exd5 Nxh5 19. Bg5 Rd7 {½-½ (44) Dobrovoljc,V (2414)-Nikolovski,N 
(2401) Terme Catez 2021}) 13. h5 {[%emt 0:03:59]} Bxb3 {[%emt 0:04:25]} 14.
cxb3 {[%emt 0:00:08]} e5 {[%emt 0:02:01]} 15. Be3 {[%emt 0:10:49]} b4 {[%emt 0:
00:00]} 16. Nd5 {[%emt 0:03:26]} Nxd5 {[%emt 0:02:41]} 17. exd5 {[%emt 0:00:05]
} e4 {[%emt 0:04:31]} 18. f4 {[%emt 0:14:09]} Qb5 {[%emt 0:07:34]} 19. f5 {
[%emt 0:11:34]} (19. h6 $11 {keeps the balance.} Bh8 20. Kf2) 19... Rac8 $17 {
[%emt 0:04:35][%cal Yc8c3]} 20. Rf1 {[%emt 0:05:56]} Be5 {[%emt 0:08:10] [#]
Strongly threatening ...Bg3+.} (20... gxh5 $2 21. f6 $18) 21. Kf2 {[%emt 0:00:
00] Against Bg3+} Qd3 {[%emt 0:03:02]} 22. Qxd3 {[%emt 0:00:21]} exd3 {[%emt 0:
00:00]} 23. Rad1 {[%emt 0:00:38] [#]} Rc2+ $1 {[%emt 0:01:52]} ({Don't play} 
23... gxf5 $6 24. Rxd3 Bxb2 25. Bxa7 $11) 24. Kf3 {[%emt 0:00:14]} Rxb2 {
[%emt 0:03:19]} ({Much worse is} 24... gxf5 $6 25. Rxd3 Rxb2 26. Rd2 $15) 25.
Rf2 {[%emt 0:00:15]} Rxf2+ {[%emt 0:00:45]} ({Of course not} 25... gxh5 $6 26.
Rxb2 Bxb2 27. Bf4 $11) 26. Bxf2 {[%emt 0:00:04]} gxf5 {[%emt 0:00:17]} 27. Bxa7
{[%emt 0:07:18] Endgame KRB-KRB} Ra8 {[%emt 0:00:48]} 28. Be3 {[%emt 0:00:03]}
Rxa2 {[%emt 0:00:53]} 29. Rxd3 {[%emt 0:00:01]} Ra8 {[%emt 0:00:00]} 30. Bd2 {
[%emt 0:00:19]} Rb8 {[%emt 0:00:25]} 31. Ke2 {[%emt 0:02:04] The position is
equal.} Rb5 {[%emt 0:02:55]} 32. Rf3 {[%emt 0:01:02]} Rxd5 {[%emt 0:03:58]} 33.
Bxb4 {[%emt 0:00:56] Weighted Error Value: White=0.11 (very precise) /Black=0.
06 (flawless)} 1/2-1/2

[Event "44th Chess Olympiad Open 2022"]
[Site "Chennai"]
[Date "2022.08.06"]
[Round "8.2"]
[White "Sarin Nihal"]
[Black "Aronian, Levon"]
[Result "1/2-1/2"]
[WhiteElo "2651"]
[BlackElo "2775"]
[Annotator "TA"]
[PlyCount "69"]
[EventDate "2022.??.??"]
[TimeControl "60"]

{[%evp 12,69,22,5,19,16,30,7,6,10,20,1,2,0,0,0,0,0,0,0,0,0,0,0,17,18,18,18,18,
20,25,25,22,28,27,29,32,25,30,27,25,32,29,31,45,45,45,45,50,40,67,67,79,68,70,
68,67,72,85,84]} 1. d4 {[%emt 0:00:34]} Nf6 {[%emt 0:00:06]} 2. c4 {[%emt 0:00:
00]} e6 {[%emt 0:00:05]} 3. Nf3 {[%emt 0:00:03]} d5 {[%emt 0:00:06]} 4. Nc3 {
[%emt 0:00:12]} Bb4 {[%emt 0:00:12]} 5. Qa4+ {[%emt 0:00:07]} Nc6 {[%emt 0:00:
00]} 6. e3 {[%emt 0:00:05]} O-O {[%emt 0:00:07]} 7. Bd2 {[%emt 0:00:08]} Re8 {
[%emt 0:00:09] D38: Queen's Gambit Declined: Ragozin Defence (4 Nf3 Bb4).} 8.
a3 {[%emt 0:01:24]} Bf8 $1 {[%emt 0:00:13] 8...Bf8 is better than 8...Bd6.} 9.
h3 {[%emt 0:00:14]} a6 {[%emt 0:06:34] The position is equal.} 10. Rd1 {
[%emt 0:05:24] [#]} Ne7 $146 {[%emt 0:05:07]} ({Predecessor:} 10... Bd7 11. Qc2
dxc4 12. Bxc4 b5 13. Bb3 b4 14. Nb1 bxa3 15. bxa3 Na7 16. O-O c5 {1-0 (38)
Vitenberg,N (2315)-Lobanov,S (2514) Chess.com INT 2021}) 11. Qc2 {[%emt 0:00:
00]} b6 $1 {[%emt 0:04:32]} 12. Be2 {[%emt 0:32:35]} Bb7 {[%emt 0:01:16]} 13.
O-O {[%emt 0:00:06]} Ng6 {[%emt 0:08:25]} 14. Ne5 {[%emt 0:00:36]} c5 {[%emt 0:
00:00]} 15. Nxg6 {[%emt 0:04:09]} hxg6 {[%emt 0:00:08]} 16. dxc5 {[%emt 0:00:
00]} bxc5 {[%emt 0:02:41]} 17. Bf3 {[%emt 0:01:02]} Nd7 {[%emt 0:10:51]} 18.
cxd5 {[%emt 0:02:58]} Ne5 {[%emt 0:00:11]} 19. Be4 {[%emt 0:04:18] [#] Hoping
for dxe6.} f5 $1 {[%emt 0:00:33]} (19... exd5 20. Be1 $16) 20. f4 {[%emt 0:00:
00]} (20. Qb3 Rb8 21. f4 fxe4 22. fxe5 Bxd5 $17) 20... fxe4 {[%emt 0:01:59]}
21. fxe5 {[%emt 0:00:29] And now d6 would win.} exd5 {[%emt 0:00:05]} 22. Be1 {
[%emt 0:01:04] Bg3 is the strong threat.} Rxe5 {[%emt 0:11:37]} 23. Bg3 {
[%emt 0:01:53]} (23. Qf2 Rf5 24. Qg3 Rxf1+ 25. Kxf1 Qf6+ 26. Bf2 d4 27. exd4
cxd4 28. Rxd4 e3 29. Qxe3 Bc5 $17) 23... Re6 {[%emt 0:00:05] [#]} 24. Nxd5 $1 {
[%emt 0:00:31]} Bxd5 {[%emt 0:00:05]} 25. Qd2 {[%emt 0:00:02]} c4 {[%emt 0:00:
00][%cal Yc4c3]} 26. Qxd5 {[%emt 0:00:05]} Qxd5 {[%emt 0:00:05]} 27. Rxd5 {
[%emt 0:00:04]} c3 {[%emt 0:00:05]} 28. bxc3 {[%emt 0:00:02]} Bxa3 {[%emt 0:00:
00]} 29. Be5 {[%emt 0:00:04]} Be7 {[%emt 0:01:52]} 30. Ra1 $1 {[%emt 0:01:55]}
Rc8 {[%emt 0:02:01]} 31. Bd4 {[%emt 0:07:18] White is more active.} Bf6 {
[%emt 0:02:55]} 32. Rda5 {[%emt 0:07:34]} Rcc6 {[%emt 0:00:06]} 33. Kf2 {
[%emt 0:01:02]} Bd8 {[%emt 0:10:02]} 34. Rd5 {[%emt 0:00:32]} Red6 {[%emt 0:00:
00]} 35. Re5 {[%emt 0:05:37] Weighted Error Value: White=0.02 (flawless) /
Black=0.03 (flawless)} 1/2-1/2

[Event "44th Chess Olympiad Open 2022"]
[Site "Chennai"]
[Date "2022.08.06"]
[Round "8.2"]
[White "Sadhwani, Raunak"]
[Black "Dominguez Perez, Leinier"]
[Result "1-0"]
[WhiteElo "2611"]
[BlackElo "2754"]
[Annotator "TA"]
[PlyCount "89"]
[EventDate "2022.??.??"]
[TimeControl "60"]

{[%evp 21,89,7,32,24,22,17,33,0,16,0,59,-18,0,0,0,0,0,0,0,-18,140,137,130,147,
123,130,147,127,143,-250,127,113,152,137,132,127,137,137,132,143,144,133,112,
105,132,132,138,140,131,29,29,22,26,29,71,10,30,30,126,31,445,436,440,440,645,
627,1943,1930,2187,1966]} 1. e4 {[%emt 0:00:02]} c5 {[%emt 0:00:10]} 2. Nf3 {
[%emt 0:00:04]} d6 {[%emt 0:00:06]} 3. d4 {[%emt 0:00:03]} cxd4 {[%emt 0:00:14]
} 4. Nxd4 {[%emt 0:00:03]} Nf6 {[%emt 0:00:11]} 5. Nc3 {[%emt 0:00:04]} a6 {
[%emt 0:00:05]} 6. Be3 {[%emt 0:00:03]} e5 {[%emt 0:01:52]} 7. Nb3 {[%emt 0:00:
00]} Be6 {[%emt 0:00:07]} 8. f3 {[%emt 0:00:05]} h5 {[%emt 0:00:06]} 9. Qd2 {
[%emt 0:00:12]} Nbd7 {[%emt 0:00:07]} 10. O-O-O {[%emt 0:00:16]} Be7 {[%emt 0:
00:00]} 11. Kb1 {[%emt 0:01:47]} Rc8 {[%emt 0:00:05] is more profitable than
11...b5 at the moment.} 12. Bd3 {[%emt 0:00:59] B90: Sicilian Najdorf: Unusual
White 6th moves, 6 Be3 Ng4 and 6 Be3 e5.} b5 {[%emt 0:00:50]} 13. h3 {[%emt 0:
00:00]} h4 {[%emt 0:01:59]} 14. Rhe1 {[%emt 0:00:24] White is slightly better.}
O-O {[%emt 0:27:42] [#]} 15. Rg1 $146 {[%emt 0:08:48][%cal Ye1g1,Yg1g5,Yg5h5]}
({Predecessor:} 15. f4 exf4 16. Bxf4 Nh5 17. Bh2 Ne5 18. Nd5 Bxd5 19. exd5 Bg5
20. Qf2 Re8 21. Bf5 {1-0 (47) Preotu,R (2487)-Talukdar,R (2341) ICC INT 2021})
15... b4 {[%emt 0:11:18]} (15... Nc5 $11) 16. Ne2 {[%emt 0:00:00]} ({White
should try} 16. Nd5 $1 $14) 16... d5 {[%emt 0:11:06]} 17. g3 {[%emt 0:19:47]}
dxe4 {[%emt 0:00:08]} 18. fxe4 {[%emt 0:00:04]} a5 {[%emt 0:00:00]} 19. gxh4 {
[%emt 0:01:47][%cal Ye2d4]} Kh8 {[%emt 0:00:11]} 20. Rg5 {[%emt 0:20:37][%cal
Yb3d4]} a4 $2 {[%emt 0:01:47] [#]} (20... Nh7 $11 21. Rgg1 a4) 21. Nbd4 $1 $16
{[%emt 0:20:42]} exd4 {[%emt 0:16:13]} 22. Bxd4 {[%emt 0:00:05][%cal Yg5g7]
Rxg7! would kill now.} Rg8 {[%emt 0:01:44]} (22... Bxh3 23. Rxg7 $3 Kxg7 24.
Qg5+ Kh7 25. e5+ Kh8 26. exf6 Nxf6 27. Bxf6+ Bxf6 28. Qh6+ Kg8 29. Qh7#) 23.
Rdg1 $1 {[%emt 0:00:53][%cal Yg5h5] White wants to mate with Rh5+!} Nf8 {
[%emt 0:06:38]} (23... Bxh3 {is a self mate.} 24. Rh5+ $3 Nh7 25. Qh6 Ndf6 26.
Bxf6) 24. Bxf6 {[%emt 0:00:00] Remove Defender} Bxf6 {[%emt 0:00:06]} 25. Rh5+
{[%emt 0:00:06]} Nh7 {[%emt 0:00:03] aiming for ...g6.} 26. e5 {[%emt 0:00:26]
[%csl Gd3][%cal Rh5h7]} g6 {[%emt 0:00:09]} 27. Qh6 {[%emt 0:00:09][%csl Gh5]
[%cal Rh6h7]} Rg7 {[%emt 0:00:08] And now ...Be7 would win.} 28. exf6 {[%emt 0:
00:31] Chess con chili.} Qxf6 {[%emt 0:00:04]} 29. Rb5 {[%emt 0:00:30]} b3 {
[%emt 0:08:42]} 30. axb3 {[%emt 0:00:33]} axb3 {[%emt 0:00:14]} 31. cxb3 {
[%emt 0:00:40]} Bd7 {[%emt 0:07:57]} 32. Rb4 {[%emt 0:03:36]} Bf5 {[%emt 0:00:
01] [#]} 33. Qe3 {[%emt 0:04:00]} Rgg8 {[%emt 0:04:58][%cal Yg7g8,Yg8e8,Ye8d8]}
34. Bxf5 {[%emt 0:00:25]} Qxf5+ {[%emt 0:00:05]} 35. Ka1 {[%emt 0:00:07]} ({
White should play} 35. Qe4 $16) 35... Rge8 $11 {[%emt 0:01:46]} 36. Qd4+ {
[%emt 0:00:00]} Nf6 {[%emt 0:00:56]} 37. Nc3 {[%emt 0:01:16][%cal Yh4h5]
Prevents Re4.} Red8 {[%emt 0:00:30]} 38. Qe3 {[%emt 0:01:29]} (38. Qf4 $16)
38... Kg7 {[%emt 0:00:26]} 39. Rf4 {[%emt 0:02:47]} Qa5+ {[%emt 0:00:28] [#]} (
39... Ra8+ $1 $11 {keeps the balance.} 40. Ra4 Qc2) 40. Na4 {[%emt 0:00:16]} ({
Better is} 40. Kb1 $1 $16) 40... Nd5 {[%emt 0:00:36] Prevents b4.} (40... Rc6
$1 $14) 41. Qe5+ $18 {[%emt 0:30:29] White is clearly winning.} Kg8 {[%emt 0:
00:00]} 42. Rd4 {[%emt 0:00:00]} Rc5 {[%emt 0:15:25]} (42... Rb8 $142 43. h5
Re8 44. Qxd5 Qxd5 45. Rxd5 Rxb3) 43. Rgd1 {[%emt 0:00:00]} f6 {[%emt 0:06:45]}
44. Qe4 {[%emt 0:00:00]} Kf8 {[%emt 0:03:44]} 45. Qxg6 {[%emt 0:00:00]
Weighted Error Value: White=0.16 (very precise) /Black=0.48} 1-0